[Event "Early-Titled-Tuesday-Blitz-March-19-2024"]
[Site "Chess.com"]
[Date "2024.03.19"]
[Round "11"]
[White "Szparu"]
[Black "FMVolodymyrSakun"]
[Result "1-0"]
[WhiteElo "2795"]
[BlackElo "2639"]
[TimeControl "180+1"]
[EndTime "10:03:00 PDT"]
[Termination "Szparu won by resignation"]

1. d4 {[%clk 0:03:00.9]} 1... d5 {[%clk 0:02:57.8]} 2. c4 {[%clk 0:03:00.8]}
2... e6 {[%clk 0:02:56.2]} 3. Nf3 {[%clk 0:03:01]} 3... Nf6 {[%clk 0:02:55.7]}
4. g3 {[%clk 0:03:01.5]} 4... Bb4+ {[%clk 0:02:54]} 5. Nc3 {[%clk 0:03:00.6]}
5... dxc4 {[%clk 0:02:53.6]} 6. Bg2 {[%clk 0:03:01]} 6... O-O {[%clk 0:02:53.7]}
7. O-O {[%clk 0:03:01.4]} 7... Nc6 {[%clk 0:02:54]} 8. Qa4 {[%clk 0:03:01.4]}
8... Bd7 {[%clk 0:02:30.5]} 9. Rd1 {[%clk 0:03:00.6]} 9... a5 {[%clk 0:02:23]}
10. Qc2 {[%clk 0:03:00.4]} 10... h6 {[%clk 0:02:10.8]} 11. e4 {[%clk 0:03:00.5]}
11... Rb8 {[%clk 0:01:59.3]} 12. e5 {[%clk 0:03:01]} 12... Nd5 {[%clk 0:01:58]}
13. Ne4 {[%clk 0:03:01.9]} 13... b5 {[%clk 0:01:53.9]} 14. g4 {[%clk 0:03:02.4]}
14... f5 {[%clk 0:01:47.1]} 15. exf6 {[%clk 0:03:03]} 15... Nxf6 {[%clk
0:01:47.1]} 16. g5 {[%clk 0:03:03.6]} 16... Nd5 {[%clk 0:01:10.4]} 17. gxh6
{[%clk 0:03:03.2]} 17... Qe7 {[%clk 0:01:10.7]} 18. Bg5 {[%clk 0:03:02.4]} 18...
Qf7 {[%clk 0:01:10.7]} 19. hxg7 {[%clk 0:02:59.3]} 19... Qxg7 {[%clk 0:01:10.4]}
20. Kh1 {[%clk 0:02:59.1]} 20... Rxf3 {[%clk 0:00:52.8]} 21. Bxf3 {[%clk
0:02:59]} 21... Nxd4 {[%clk 0:00:53.4]} 22. Rxd4 {[%clk 0:02:58.7]} 22... Qxd4
{[%clk 0:00:52.8]} 23. Nf6+ {[%clk 0:02:56.4]} 1-0

[Event "Early-Titled-Tuesday-Blitz-March-19-2024"]
[Site "Chess.com"]
[Date "2024.03.19"]
[Round "11"]
[White "Likvidator228"]
[Black "cthulhuuu"]
[Result "0-1"]
[WhiteElo "2570"]
[BlackElo "2417"]
[TimeControl "180+1"]
[EndTime "10:03:01 PDT"]
[Termination "cthulhuuu won by resignation"]

1. d4 {[%clk 0:02:57.2]} 1... Nf6 {[%clk 0:02:59.6]} 2. c4 {[%clk 0:02:57.1]}
2... e5 {[%clk 0:02:59.9]} 3. dxe5 {[%clk 0:02:54.2]} 3... Ng4 {[%clk
0:03:00.3]} 4. Nf3 {[%clk 0:02:53.7]} 4... Bc5 {[%clk 0:03:00.5]} 5. e3 {[%clk
0:02:53.9]} 5... Nc6 {[%clk 0:03:00.7]} 6. a3 {[%clk 0:02:51.2]} 6... a5 {[%clk
0:03:00.5]} 7. Nc3 {[%clk 0:02:49.3]} 7... O-O {[%clk 0:03:00.4]} 8. Be2 {[%clk
0:02:47.8]} 8... Re8 {[%clk 0:03:00.5]} 9. h3 {[%clk 0:02:47.5]} 9... Ngxe5
{[%clk 0:03:00.3]} 10. O-O {[%clk 0:02:46.9]} 10... Nxf3+ {[%clk 0:03:00.9]} 11.
Bxf3 {[%clk 0:02:46.9]} 11... Ne5 {[%clk 0:03:01.6]} 12. Be2 {[%clk 0:02:46.9]}
12... Ra6 {[%clk 0:03:02.3]} 13. Rb1 {[%clk 0:02:42.1]} 13... Rg6 {[%clk
0:02:54.5]} 14. b4 {[%clk 0:02:41.6]} 14... Ba7 {[%clk 0:02:49.8]} 15. c5 {[%clk
0:02:35]} 15... d6 {[%clk 0:02:47.3]} 16. Nb5 {[%clk 0:02:24.6]} 16... Bxh3
{[%clk 0:02:41.2]} 17. g3 {[%clk 0:02:19.7]} 17... Qh4 {[%clk 0:02:20.5]} 18.
Bf3 {[%clk 0:01:51.4]} 18... Rxg3+ {[%clk 0:01:33]} 19. fxg3 {[%clk 0:01:50.8]}
19... Qxg3+ {[%clk 0:01:33.9]} 20. Kh1 {[%clk 0:01:51.4]} 20... Bxf1 {[%clk
0:01:34.4]} 21. Qxf1 {[%clk 0:01:51]} 21... Nxf3 {[%clk 0:01:34.5]} 22. Qg2
{[%clk 0:01:34.6]} 22... Qh4+ {[%clk 0:01:32.7]} 0-1

[Event "Early-Titled-Tuesday-Blitz-March-19-2024"]
[Site "Chess.com"]
[Date "2024.03.19"]
[Round "11"]
[White "The_Straightforward_Rook"]
[Black "Kotlyar_K"]
[Result "1-0"]
[WhiteElo "2435"]
[BlackElo "2594"]
[TimeControl "180+1"]
[EndTime "10:03:30 PDT"]
[Termination "The_Straightforward_Rook won by checkmate"]

1. Nf3 {[%clk 0:03:00.9]} 1... Nf6 {[%clk 0:02:47.7]} 2. g3 {[%clk 0:03:01.1]}
2... g6 {[%clk 0:02:46.3]} 3. Bg2 {[%clk 0:03:02]} 3... Bg7 {[%clk 0:02:47.2]}
4. O-O {[%clk 0:03:02.3]} 4... O-O {[%clk 0:02:47.9]} 5. c4 {[%clk 0:03:02.8]}
5... c6 {[%clk 0:02:47.9]} 6. b3 {[%clk 0:03:01.2]} 6... d5 {[%clk 0:02:47.5]}
7. Bb2 {[%clk 0:02:55.2]} 7... Bf5 {[%clk 0:02:39.6]} 8. d3 {[%clk 0:02:54.9]}
8... Re8 {[%clk 0:02:32.9]} 9. Nbd2 {[%clk 0:02:52.8]} 9... Qc7 {[%clk
0:02:21.6]} 10. Rc1 {[%clk 0:02:52]} 10... e5 {[%clk 0:02:20.6]} 11. cxd5 {[%clk
0:02:37.3]} 11... Nxd5 {[%clk 0:01:58.8]} 12. e4 {[%clk 0:02:37.3]} 12... Nb4
{[%clk 0:01:58.7]} 13. exf5 {[%clk 0:02:31.4]} 13... Nxd3 {[%clk 0:01:59.2]} 14.
fxg6 {[%clk 0:02:11.8]} 14... Nxb2 {[%clk 0:01:49.1]} 15. gxh7+ {[%clk
0:02:11.1]} 15... Kh8 {[%clk 0:01:48.8]} 16. Qc2 {[%clk 0:02:09.3]} 16... e4
{[%clk 0:01:42.3]} 17. Nxe4 {[%clk 0:02:07.8]} 17... Na6 {[%clk 0:01:36.9]} 18.
Neg5 {[%clk 0:01:47.1]} 18... Nb4 {[%clk 0:01:35]} 19. Qf5 {[%clk 0:01:46.6]}
19... Re7 {[%clk 0:01:28]} 20. Nh4 {[%clk 0:01:40.9]} 20... Bd4 {[%clk
0:01:01.7]} 21. Rc4 {[%clk 0:01:37.5]} 21... c5 {[%clk 0:00:58.7]} 22. Rxd4
{[%clk 0:01:35.3]} 22... cxd4 {[%clk 0:00:58.8]} 23. Qf6# {[%clk 0:01:35.5]} 1-0

[Event "Early-Titled-Tuesday-Blitz-March-19-2024"]
[Site "Chess.com"]
[Date "2024.03.19"]
[Round "11"]
[White "DarZay"]
[Black "ZachHKL"]
[Result "1-0"]
[WhiteElo "2343"]
[BlackElo "2177"]
[TimeControl "180+1"]
[EndTime "10:03:45 PDT"]
[Termination "DarZay won by resignation"]

1. e4 {[%clk 0:02:56]} 1... c5 {[%clk 0:02:59.2]} 2. Nf3 {[%clk 0:02:55.1]} 2...
Nc6 {[%clk 0:02:58.2]} 3. d4 {[%clk 0:02:55.6]} 3... cxd4 {[%clk 0:02:59.1]} 4.
Nxd4 {[%clk 0:02:54.7]} 4... Nf6 {[%clk 0:02:59.7]} 5. Nc3 {[%clk 0:02:54.2]}
5... e5 {[%clk 0:02:59.5]} 6. Ndb5 {[%clk 0:02:54.4]} 6... d6 {[%clk 0:02:59]}
7. Bg5 {[%clk 0:02:53.8]} 7... a6 {[%clk 0:02:59.1]} 8. Na3 {[%clk 0:02:54]}
8... b5 {[%clk 0:02:59.7]} 9. Nd5 {[%clk 0:02:54.4]} 9... Be7 {[%clk 0:02:58.7]}
10. Bxf6 {[%clk 0:02:54.7]} 10... Bxf6 {[%clk 0:02:59]} 11. c3 {[%clk
0:02:54.9]} 11... O-O {[%clk 0:02:58.4]} 12. Nc2 {[%clk 0:02:55.2]} 12... Rb8
{[%clk 0:02:58.6]} 13. Be2 {[%clk 0:02:54]} 13... Bg5 {[%clk 0:02:58.7]} 14.
Nce3 {[%clk 0:02:53.7]} 14... Ne7 {[%clk 0:02:58.7]} 15. O-O {[%clk 0:02:52.9]}
15... Be6 {[%clk 0:02:59.2]} 16. Kh1 {[%clk 0:02:45.3]} 16... Bxe3 {[%clk
0:02:57.9]} 17. Nxe3 {[%clk 0:02:44.6]} 17... d5 {[%clk 0:02:58.8]} 18. exd5
{[%clk 0:02:44.2]} 18... Nxd5 {[%clk 0:02:58.2]} 19. Nxd5 {[%clk 0:02:43.2]}
19... Qxd5 {[%clk 0:02:59]} 20. Qxd5 {[%clk 0:02:42.4]} 20... Bxd5 {[%clk
0:02:59.9]} 21. Rfd1 {[%clk 0:02:40.2]} 21... Rfd8 {[%clk 0:02:59.2]} 22. b3
{[%clk 0:02:38.6]} 22... Be6 {[%clk 0:02:55.1]} 23. Rxd8+ {[%clk 0:02:36.6]}
23... Rxd8 {[%clk 0:02:56]} 24. Rd1 {[%clk 0:02:36.6]} 24... Rc8 {[%clk
0:02:55.1]} 25. Rd3 {[%clk 0:02:32.7]} 25... h6 {[%clk 0:02:49.1]} 26. h4 {[%clk
0:02:29.8]} 26... Kf8 {[%clk 0:02:48.4]} 27. Rd6 {[%clk 0:02:24.5]} 27... Rxc3
{[%clk 0:02:46.7]} 28. Rxa6 {[%clk 0:02:24.2]} 28... Rc2 {[%clk 0:02:47.3]} 29.
Bxb5 {[%clk 0:02:22.2]} 29... Rxf2 {[%clk 0:02:46.9]} 30. Bc6 {[%clk 0:02:21]}
30... Rf4 {[%clk 0:02:44.7]} 31. g3 {[%clk 0:02:15.2]} 31... Rf2 {[%clk
0:02:43.1]} 32. Kg1 {[%clk 0:02:13.3]} 32... Rb2 {[%clk 0:02:41.6]} 33. Ra7
{[%clk 0:02:08.9]} 33... g5 {[%clk 0:02:35.6]} 34. hxg5 {[%clk 0:02:07.8]} 34...
hxg5 {[%clk 0:02:36.5]} 35. Kf1 {[%clk 0:01:59.7]} 35... Bh3+ {[%clk 0:02:34.9]}
36. Ke1 {[%clk 0:01:59.8]} 36... f5 {[%clk 0:02:31.4]} 37. Bd5 {[%clk
0:01:58.7]} 37... f4 {[%clk 0:02:29.9]} 38. gxf4 {[%clk 0:01:55.9]} 38... gxf4
{[%clk 0:02:28.5]} 39. a4 {[%clk 0:01:55.5]} 39... Rb1+ {[%clk 0:02:23.6]} 40.
Kd2 {[%clk 0:01:54.5]} 40... Rb2+ {[%clk 0:02:23.6]} 41. Kc3 {[%clk 0:01:54.5]}
41... Re2 {[%clk 0:02:13]} 42. a5 {[%clk 0:01:52.3]} 42... Bg2 {[%clk
0:02:07.4]} 43. Bc4 {[%clk 0:01:31.3]} 43... Ra2 {[%clk 0:02:05.2]} 44. b4
{[%clk 0:01:23.2]} 44... f3 {[%clk 0:02:03.6]} 45. Bxa2 {[%clk 0:01:16.5]} 45...
e4 {[%clk 0:01:59.7]} 46. Rf7+ {[%clk 0:01:13.6]} 1-0

[Event "Early-Titled-Tuesday-Blitz-March-19-2024"]
[Site "Chess.com"]
[Date "2024.03.19"]
[Round "11"]
[White "stollenmonster"]
[Black "Saxar85"]
[Result "1-0"]
[WhiteElo "2901"]
[BlackElo "2731"]
[TimeControl "180+1"]
[EndTime "10:04:10 PDT"]
[Termination "stollenmonster won on time"]

1. e4 {[%clk 0:03:00.9]} 1... e5 {[%clk 0:02:57.7]} 2. Nc3 {[%clk 0:03:01]} 2...
Nc6 {[%clk 0:02:55.5]} 3. g3 {[%clk 0:03:01.4]} 3... Bc5 {[%clk 0:02:54.1]} 4.
Bg2 {[%clk 0:03:01.8]} 4... Nf6 {[%clk 0:02:50.2]} 5. Nge2 {[%clk 0:03:01.3]}
5... a6 {[%clk 0:02:50]} 6. d3 {[%clk 0:03:01.4]} 6... d6 {[%clk 0:02:49.7]} 7.
h3 {[%clk 0:03:01.9]} 7... Nd4 {[%clk 0:02:48.3]} 8. O-O {[%clk 0:03:01.4]} 8...
Be6 {[%clk 0:02:45.8]} 9. Nxd4 {[%clk 0:03:01.4]} 9... Bxd4 {[%clk 0:02:45.6]}
10. Kh2 {[%clk 0:03:01]} 10... h5 {[%clk 0:02:43.8]} 11. Be3 {[%clk 0:02:47]}
11... Bxe3 {[%clk 0:02:27.9]} 12. fxe3 {[%clk 0:02:47.4]} 12... Qd7 {[%clk
0:02:23.7]} 13. d4 {[%clk 0:02:43.5]} 13... h4 {[%clk 0:02:20.2]} 14. g4 {[%clk
0:02:37.2]} 14... Bxg4 {[%clk 0:02:17.6]} 15. hxg4 {[%clk 0:02:38.1]} 15...
Nxg4+ {[%clk 0:02:16.9]} 16. Kh1 {[%clk 0:02:37.9]} 16... h3 {[%clk 0:02:03.7]}
17. Bf3 {[%clk 0:02:36.6]} 17... Nxe3 {[%clk 0:02:02.2]} 18. Qe2 {[%clk
0:02:35.6]} 18... Nxf1 {[%clk 0:01:53.1]} 19. Rxf1 {[%clk 0:02:35.3]} 19... Rh4
{[%clk 0:01:40.1]} 20. Nd5 {[%clk 0:02:29.5]} 20... O-O-O {[%clk 0:01:28.8]} 21.
dxe5 {[%clk 0:02:28]} 21... dxe5 {[%clk 0:01:24.5]} 22. Qf2 {[%clk 0:02:28.6]}
22... g5 {[%clk 0:00:43.1]} 23. Qa7 {[%clk 0:02:25.2]} 23... Qd6 {[%clk
0:00:43]} 24. Rd1 {[%clk 0:02:09]} 24... g4 {[%clk 0:00:18.6]} 25. Ne7+ {[%clk
0:02:07.5]} 25... Kd7 {[%clk 0:00:15.4]} 26. Rxd6+ {[%clk 0:02:06.7]} 26... cxd6
{[%clk 0:00:11.2]} 27. Nf5 {[%clk 0:02:06.7]} 1-0

[Event "Early-Titled-Tuesday-Blitz-March-19-2024"]
[Site "Chess.com"]
[Date "2024.03.19"]
[Round "11"]
[White "MagnusCarlsen"]
[Black "Zhigalko_Sergei"]
[Result "1-0"]
[WhiteElo "3255"]
[BlackElo "2879"]
[TimeControl "180+1"]
[EndTime "10:04:11 PDT"]
[Termination "MagnusCarlsen won on time"]

1. b4 {[%clk 0:03:00.9]} 1... e5 {[%clk 0:02:58.9]} 2. Bb2 {[%clk 0:02:56.5]}
2... e4 {[%clk 0:02:59.4]} 3. a3 {[%clk 0:02:53.6]} 3... Nf6 {[%clk 0:02:59]} 4.
e3 {[%clk 0:02:54]} 4... d5 {[%clk 0:02:59.3]} 5. c4 {[%clk 0:02:54.1]} 5... Be7
{[%clk 0:02:33.6]} 6. cxd5 {[%clk 0:02:53]} 6... Qxd5 {[%clk 0:02:33.8]} 7. Nc3
{[%clk 0:02:51.7]} 7... Qf5 {[%clk 0:02:33.6]} 8. f3 {[%clk 0:02:47.7]} 8... O-O
{[%clk 0:02:27.5]} 9. fxe4 {[%clk 0:02:40.5]} 9... Nxe4 {[%clk 0:02:26]} 10.
Nxe4 {[%clk 0:02:39]} 10... Qxe4 {[%clk 0:02:25.9]} 11. Nf3 {[%clk 0:02:39.9]}
11... a5 {[%clk 0:01:59.6]} 12. b5 {[%clk 0:02:40.1]} 12... Nd7 {[%clk 0:01:53]}
13. Rc1 {[%clk 0:02:40.7]} 13... Bd6 {[%clk 0:01:45.4]} 14. Be2 {[%clk
0:02:38.2]} 14... Nc5 {[%clk 0:01:27.6]} 15. O-O {[%clk 0:02:34.8]} 15... Bd7
{[%clk 0:01:17.1]} 16. Rc4 {[%clk 0:02:33.5]} 16... Qe7 {[%clk 0:01:15.7]} 17.
Qc2 {[%clk 0:02:28.7]} 17... Rae8 {[%clk 0:01:00]} 18. a4 {[%clk 0:02:23.7]}
18... Be6 {[%clk 0:00:53.7]} 19. Rh4 {[%clk 0:02:21.5]} 19... f5 {[%clk
0:00:44.3]} 20. g3 {[%clk 0:02:14.7]} 20... Bd5 {[%clk 0:00:32.3]} 21. Bc4
{[%clk 0:02:10.9]} 21... Bxc4 {[%clk 0:00:31.1]} 22. Qxc4+ {[%clk 0:02:10.1]}
22... Qe6 {[%clk 0:00:28.7]} 23. Rxh7 {[%clk 0:02:00]} 23... Qxc4 {[%clk
0:00:05]} 24. Rxg7+ {[%clk 0:02:00.2]} 24... Kh8 {[%clk 0:00:05.7]} 25. Rg4+
{[%clk 0:02:01.1]} 25... Be5 {[%clk 0:00:01.4]} 26. Rxc4 {[%clk 0:01:58.6]} 1-0

[Event "Early-Titled-Tuesday-Blitz-March-19-2024"]
[Site "Chess.com"]
[Date "2024.03.19"]
[Round "11"]
[White "ragnaroek66"]
[Black "Mikasinski"]
[Result "1-0"]
[WhiteElo "2544"]
[BlackElo "2624"]
[TimeControl "180+1"]
[EndTime "10:04:14 PDT"]
[Termination "ragnaroek66 won by resignation"]

1. d4 {[%clk 0:03:00.9]} 1... Nf6 {[%clk 0:03:00.2]} 2. c4 {[%clk 0:02:59.3]}
2... e6 {[%clk 0:03:00.8]} 3. Nf3 {[%clk 0:02:59.4]} 3... b6 {[%clk 0:03:00.3]}
4. g3 {[%clk 0:02:59.6]} 4... Bb7 {[%clk 0:03:00.6]} 5. Bg2 {[%clk 0:02:59.8]}
5... Bb4+ {[%clk 0:03:01]} 6. Bd2 {[%clk 0:02:59.6]} 6... Bxd2+ {[%clk
0:03:01.3]} 7. Qxd2 {[%clk 0:02:53.3]} 7... O-O {[%clk 0:03:01.7]} 8. O-O {[%clk
0:02:53.4]} 8... d5 {[%clk 0:03:02.1]} 9. Qc2 {[%clk 0:02:50.6]} 9... Nbd7
{[%clk 0:02:59.6]} 10. Ne5 {[%clk 0:02:33.7]} 10... c5 {[%clk 0:02:57.8]} 11.
Nxd7 {[%clk 0:02:20.2]} 11... Qxd7 {[%clk 0:02:41.6]} 12. dxc5 {[%clk 0:02:20]}
12... Rac8 {[%clk 0:02:37.2]} 13. cxd5 {[%clk 0:02:05.6]} 13... Bxd5 {[%clk
0:02:32.2]} 14. Rd1 {[%clk 0:01:51.3]} 14... Rxc5 {[%clk 0:02:28.9]} 15. Nc3
{[%clk 0:01:50.5]} 15... Qb7 {[%clk 0:02:27.7]} 16. e4 {[%clk 0:01:42]} 16...
Bc6 {[%clk 0:02:26.3]} 17. Qe2 {[%clk 0:01:23.2]} 17... e5 {[%clk 0:02:19.8]}
18. Rd6 {[%clk 0:01:20.6]} 18... b5 {[%clk 0:02:14.1]} 19. a3 {[%clk 0:01:20.3]}
19... a5 {[%clk 0:02:12.5]} 20. Rad1 {[%clk 0:01:16]} 20... b4 {[%clk
0:02:11.6]} 21. axb4 {[%clk 0:01:16.3]} 21... axb4 {[%clk 0:02:12.3]} 22. Nd5
{[%clk 0:01:16.8]} 22... Bxd5 {[%clk 0:02:03]} 23. exd5 {[%clk 0:01:16.7]} 23...
e4 {[%clk 0:01:51.8]} 24. Rxf6 {[%clk 0:01:09.2]} 24... gxf6 {[%clk 0:01:50.2]}
25. Qg4+ {[%clk 0:01:09.4]} 25... Kh8 {[%clk 0:01:50.2]} 26. Bxe4 {[%clk
0:01:09.4]} 26... f5 {[%clk 0:01:41.6]} 27. Bxf5 {[%clk 0:00:58.3]} 27... Qa6
{[%clk 0:01:39.6]} 28. Qh5 {[%clk 0:00:42.2]} 28... h6 {[%clk 0:01:38.9]} 29. d6
{[%clk 0:00:42]} 29... Kg7 {[%clk 0:01:33.6]} 30. Qg4+ {[%clk 0:00:39.2]} 30...
Kh8 {[%clk 0:01:33.2]} 31. Qd4+ {[%clk 0:00:39.2]} 31... Re5 {[%clk 0:01:33.3]}
32. Qxe5+ {[%clk 0:00:39.3]} 1-0

[Event "Early-Titled-Tuesday-Blitz-March-19-2024"]
[Site "Chess.com"]
[Date "2024.03.19"]
[Round "11"]
[White "missponyo10"]
[Black "SamCopeland"]
[Result "0-1"]
[WhiteElo "2247"]
[BlackElo "2371"]
[TimeControl "180+1"]
[EndTime "10:04:21 PDT"]
[Termination "SamCopeland won by resignation"]

1. e4 {[%clk 0:03:00.9]} 1... c6 {[%clk 0:02:58.3]} 2. d4 {[%clk 0:02:57.8]}
2... d5 {[%clk 0:02:58]} 3. Nd2 {[%clk 0:02:58.7]} 3... dxe4 {[%clk 0:02:56.4]}
4. Nxe4 {[%clk 0:02:59.5]} 4... Nf6 {[%clk 0:02:56.1]} 5. Nxf6+ {[%clk
0:02:59.5]} 5... exf6 {[%clk 0:02:56.1]} 6. c3 {[%clk 0:02:59.9]} 6... Bd6
{[%clk 0:02:55.1]} 7. Bd3 {[%clk 0:03:00.4]} 7... O-O {[%clk 0:02:54.5]} 8. Qc2
{[%clk 0:03:00.6]} 8... Re8+ {[%clk 0:02:54.5]} 9. Ne2 {[%clk 0:03:01]} 9... h5
{[%clk 0:02:54.1]} 10. O-O {[%clk 0:02:59.6]} 10... h4 {[%clk 0:02:53.3]} 11. h3
{[%clk 0:02:56.9]} 11... Nd7 {[%clk 0:02:46.6]} 12. Be3 {[%clk 0:02:55.6]} 12...
Nf8 {[%clk 0:02:40.5]} 13. Qd2 {[%clk 0:02:54.2]} 13... g5 {[%clk 0:02:31.2]}
14. f4 {[%clk 0:02:43]} 14... Qe7 {[%clk 0:02:07.9]} 15. Bf2 {[%clk 0:02:40]}
15... Ng6 {[%clk 0:01:53.6]} 16. Bxg6 {[%clk 0:02:32.3]} 16... fxg6 {[%clk
0:01:51.8]} 17. Rae1 {[%clk 0:02:32.2]} 17... Bf5 {[%clk 0:01:26.1]} 18. Ng3
{[%clk 0:02:24.8]} 18... hxg3 {[%clk 0:01:17.6]} 19. Rxe7 {[%clk 0:02:22.7]}
19... gxf2+ {[%clk 0:01:17.3]} 20. Qxf2 {[%clk 0:02:20.7]} 20... Rxe7 {[%clk
0:01:14.4]} 21. fxg5 {[%clk 0:02:20.4]} 21... fxg5 {[%clk 0:01:10.3]} 22. g4
{[%clk 0:02:19.5]} 22... Bd3 {[%clk 0:01:05.2]} 23. Rd1 {[%clk 0:02:14.9]} 23...
Rf8 {[%clk 0:00:44.9]} 24. Qd2 {[%clk 0:02:06]} 24... Rf3 {[%clk 0:00:43.3]} 25.
Qxg5 {[%clk 0:02:01.7]} 25... Rg3+ {[%clk 0:00:38.6]} 26. Kf2 {[%clk 0:01:52.9]}
26... Re2+ {[%clk 0:00:33.4]} 27. Kf1 {[%clk 0:01:51.2]} 27... Re5+ {[%clk
0:00:23.5]} 28. Rxd3 {[%clk 0:01:47.3]} 28... Rxg5 {[%clk 0:00:23.2]} 29. Rxg3
{[%clk 0:01:47.9]} 29... Bxg3 {[%clk 0:00:23.5]} 30. Kg2 {[%clk 0:01:48.4]}
30... Bh4 {[%clk 0:00:23.1]} 31. Kf3 {[%clk 0:01:48.5]} 31... Kf7 {[%clk
0:00:22.4]} 0-1

[Event "Early-Titled-Tuesday-Blitz-March-19-2024"]
[Site "Chess.com"]
[Date "2024.03.19"]
[Round "11"]
[White "FREDERICKtheMATE"]
[Black "yaguigor"]
[Result "1/2-1/2"]
[WhiteElo "2684"]
[BlackElo "2560"]
[TimeControl "180+1"]
[EndTime "10:04:23 PDT"]
[Termination "Game drawn by agreement"]

1. d4 {[%clk 0:03:00.9]} 1... d5 {[%clk 0:02:47.8]} 2. c4 {[%clk 0:03:00.5]}
2... c6 {[%clk 0:02:47.6]} 3. Nc3 {[%clk 0:02:59.8]} 3... Nf6 {[%clk 0:02:46.6]}
4. Nf3 {[%clk 0:03:00.3]} 4... e6 {[%clk 0:02:46.7]} 5. e3 {[%clk 0:02:59.6]}
5... Nbd7 {[%clk 0:02:46.1]} 6. Be2 {[%clk 0:02:59.8]} 6... Bd6 {[%clk
0:02:45.1]} 7. O-O {[%clk 0:02:59.6]} 7... O-O {[%clk 0:02:45.4]} 8. Qc2 {[%clk
0:03:00.1]} 8... b6 {[%clk 0:02:43]} 9. b3 {[%clk 0:03:00.7]} 9... Bb7 {[%clk
0:02:42.6]} 10. Bb2 {[%clk 0:03:01.1]} 10... Qe7 {[%clk 0:02:43]} 11. Rad1
{[%clk 0:03:01.3]} 11... Rad8 {[%clk 0:02:42]} 12. Rfe1 {[%clk 0:03:00.4]} 12...
Rfe8 {[%clk 0:02:41.4]} 13. e4 {[%clk 0:02:59.4]} 13... Nxe4 {[%clk 0:02:39]}
14. Nxe4 {[%clk 0:02:59.3]} 14... dxe4 {[%clk 0:02:39.1]} 15. Qxe4 {[%clk
0:03:00.2]} 15... Bb4 {[%clk 0:02:38.3]} 16. Rf1 {[%clk 0:02:58.1]} 16... Bd6
{[%clk 0:02:38.9]} 17. Ne5 {[%clk 0:02:52.5]} 17... Nxe5 {[%clk 0:02:09.2]} 18.
dxe5 {[%clk 0:02:53.4]} 18... Bb4 {[%clk 0:01:57.1]} 19. Bd3 {[%clk 0:02:48.2]}
19... g6 {[%clk 0:01:55.4]} 20. h4 {[%clk 0:02:45.1]} 20... Rd7 {[%clk
0:01:38.4]} 21. Bc1 {[%clk 0:02:39.8]} 21... c5 {[%clk 0:01:33.5]} 22. Qg4
{[%clk 0:02:34]} 22... Rd4 {[%clk 0:01:21.3]} 23. f4 {[%clk 0:02:33.5]} 23...
Red8 {[%clk 0:01:16.5]} 24. Bc2 {[%clk 0:02:32.8]} 24... h5 {[%clk 0:01:13]} 25.
Qg3 {[%clk 0:02:26.8]} 25... Rxd1 {[%clk 0:01:04.6]} 26. Rxd1 {[%clk 0:02:26.3]}
26... Rxd1+ {[%clk 0:01:03.3]} 27. Bxd1 {[%clk 0:02:27.2]} 27... Kh7 {[%clk
0:01:00.9]} 28. Bc2 {[%clk 0:02:24]} 28... Qd8 {[%clk 0:00:58.5]} 29. Qf2 {[%clk
0:02:20.7]} 29... Bc3 {[%clk 0:00:56.9]} 30. Be3 {[%clk 0:02:20.2]} 30... a5
{[%clk 0:00:48.4]} 31. Kf1 {[%clk 0:02:09.7]} 31... Qd7 {[%clk 0:00:45.6]} 32.
Qe2 {[%clk 0:02:04.3]} 32... Kg7 {[%clk 0:00:44.6]} 33. Qd3 {[%clk 0:01:53.6]}
33... Qxd3+ {[%clk 0:00:38.8]} 34. Bxd3 {[%clk 0:01:54.5]} 34... Kf8 {[%clk
0:00:36.4]} 35. g3 {[%clk 0:01:49.4]} 35... Bc6 {[%clk 0:00:34]} 36. a4 {[%clk
0:01:49.3]} 36... Bb7 {[%clk 0:00:32.8]} 37. Kf2 {[%clk 0:01:46.8]} 1/2-1/2

[Event "Early-Titled-Tuesday-Blitz-March-19-2024"]
[Site "Chess.com"]
[Date "2024.03.19"]
[Round "11"]
[White "AlexPapasimakopoulos"]
[Black "Zq1"]
[Result "1-0"]
[WhiteElo "2755"]
[BlackElo "2611"]
[TimeControl "180+1"]
[EndTime "10:04:26 PDT"]
[Termination "AlexPapasimakopoulos won by resignation"]

1. h4 {[%clk 0:02:52.2]} 1... d5 {[%clk 0:02:58.3]} 2. h5 {[%clk 0:02:49.7]}
2... h6 {[%clk 0:02:57.9]} 3. d4 {[%clk 0:02:46.9]} 3... c5 {[%clk 0:02:57.5]}
4. c3 {[%clk 0:02:43.4]} 4... Nf6 {[%clk 0:02:52.7]} 5. Bf4 {[%clk 0:02:37.1]}
5... e6 {[%clk 0:02:44.5]} 6. Nf3 {[%clk 0:02:27.2]} 6... Nc6 {[%clk 0:02:44.3]}
7. e3 {[%clk 0:02:26.4]} 7... Bd6 {[%clk 0:02:43.2]} 8. Bxd6 {[%clk 0:02:15.2]}
8... Qxd6 {[%clk 0:02:42.4]} 9. Bb5 {[%clk 0:02:15.8]} 9... O-O {[%clk
0:02:40.7]} 10. Nbd2 {[%clk 0:02:15.7]} 10... Bd7 {[%clk 0:02:39.6]} 11. Bxc6
{[%clk 0:02:14.5]} 11... Bxc6 {[%clk 0:02:38.3]} 12. Ne5 {[%clk 0:02:14.9]}
12... Bb5 {[%clk 0:02:38.1]} 13. g4 {[%clk 0:02:13.1]} 13... Ne4 {[%clk
0:02:31.4]} 14. f3 {[%clk 0:02:07.3]} 14... Nxd2 {[%clk 0:02:10.6]} 15. Qxd2
{[%clk 0:02:08.2]} 15... f6 {[%clk 0:02:10.3]} 16. Ng6 {[%clk 0:02:07.7]} 16...
Qg3+ {[%clk 0:02:09.8]} 17. Qf2 {[%clk 0:02:07.4]} 17... Qxf2+ {[%clk
0:02:09.9]} 18. Kxf2 {[%clk 0:02:08.3]} 18... cxd4 {[%clk 0:01:57.2]} 19. Nxf8
{[%clk 0:01:59.8]} 19... dxe3+ {[%clk 0:01:57.2]} 20. Kxe3 {[%clk 0:02:00.7]}
20... Kxf8 {[%clk 0:01:56.9]} 21. f4 {[%clk 0:01:59.3]} 21... Ke7 {[%clk
0:01:54.9]} 22. g5 {[%clk 0:01:55.9]} 22... hxg5 {[%clk 0:01:53.6]} 23. fxg5
{[%clk 0:01:56.8]} 23... Rh8 {[%clk 0:01:52.3]} 24. Rag1 {[%clk 0:01:42.6]}
24... Be8 {[%clk 0:01:35.6]} 25. h6 {[%clk 0:01:38.9]} 25... gxh6 {[%clk
0:01:27.8]} 26. Rxh6 {[%clk 0:01:34.8]} 26... Rf8 {[%clk 0:01:16.5]} 27. Rh7+
{[%clk 0:01:25]} 27... Kd6 {[%clk 0:01:14.1]} 28. g6 {[%clk 0:01:02]} 28... Rg8
{[%clk 0:01:11.1]} 29. Rxb7 {[%clk 0:01:01.4]} 29... Rxg6 {[%clk 0:01:04.5]} 30.
Rxg6 {[%clk 0:01:01]} 30... Bxg6 {[%clk 0:01:04.1]} 31. Rxa7 {[%clk 0:01:01.2]}
31... e5 {[%clk 0:01:01.2]} 32. a4 {[%clk 0:00:58.9]} 32... f5 {[%clk
0:01:01.1]} 33. Ra6+ {[%clk 0:00:58.8]} 1-0